[Event "Austria 2nd BL-Mitte 2024-25"]
[Site "Austria"]
[Date "2025.04.04"]
[Round "9.9"]
[White "Hajnal, Zoltan"]
[Black "Dankhazi, Andras"]
[Result "*"]
[Annotator "RC"]
[ECO "D45"]
[WhiteElo "2325"]
[BlackElo "2338"]
[PlyCount "33"]
[EventDate "2025.03.30"]
[EventType "team-tourn"]
[EventCountry "AUT"]
[SourceTitle "playchess.com"]
[Source "ChessBase"]
[SourceQuality "1"]
[TimeControl "40/5400+30:1800+30"]

1. d4 {[%emt 0:00:10]} d5 {[%emt 0:00:07]} 2. c4 {[%emt 0:00:05]} c6 {[%emt 0:00:04]} 3. Nc3 {[%emt 0:00:07]} Nf6 {[%emt 1:31:49]} 4. e3 {[%emt 0:00:06]} e6 {[%emt 0:00:05]} 5. Nf3 {[%emt 0:00:06]} Nbd7 {[%emt 0:00:05]} 6. Be2 {[%emt 0:00:08]} dxc4 {[%emt 0:00:20]} 7. a4 {[%emt 0:00:08]} Bd6 {[%emt 0:00:09]} 8. Nd2 {[%emt 0:00:06]} e5 {[%emt 0:00:06]} 9. Nxc4 {[%emt 0:00:07]} Bc7 {[%emt 0:00:02]} 10. b3 {[%emt 0:00:19]} exd4 {[%emt 0:00:19]} 11. Qxd4 {[%emt 0:00:29]} Nb6 {[%emt 0:00:22]} 12. Qxd8+ {[%emt 0:01:19]} Kxd8 {[%emt 0:00:03]} 13. Ba3 {[%emt 0:19:00]} Nxc4 {[%emt 0:06:00]} 14. Bxc4 {[%emt 0:00:33]} Be6 {[%emt 0:00:09]} 15. O-O-O+ {[%emt 0:08:05]} Kc8 {[%emt 1:30:04]} 16. f3 {[%emt 0:09:10]} Rd8 {[%emt 0:05:24]} 17. h3 {[%emt 0:59:02]} *

[Event "Austria 2nd BL-Mitte 2024-25"]
[Site "Austria"]
[Date "2025.04.04"]
[Round "9.11"]
[White "Theuretzbacher, Klaus"]
[Black "Wendl, Philipp"]
[Result "*"]
[Annotator "RC"]
[ECO "D35"]
[WhiteElo "2175"]
[BlackElo "2268"]
[PlyCount "53"]
[EventDate "2025.03.30"]
[EventType "team-tourn"]
[EventCountry "AUT"]
[SourceTitle "playchess.com"]
[Source "ChessBase"]
[SourceQuality "1"]
[TimeControl "40/5400+30:1800+30"]

1. d4 {[%emt 0:00:02]} d5 {[%emt 0:00:05]} 2. c4 {[%emt 0:00:06]} e6 {[%emt 0:00:03]} 3. Nc3 {[%emt 0:00:11]} Nf6 {[%emt 0:00:06]} 4. cxd5 {[%emt 0:00:05]} exd5 {[%emt 0:00:06]} 5. Bg5 {[%emt 0:00:04]} c6 {[%emt 0:00:16]} 6. e3 {[%emt 0:00:20]} Qb6 {[%emt 0:08:09]} 7. Qd2 {[%emt 0:00:42]} Ne4 {[%emt 0:04:10]} 8. Nxe4 {[%emt 0:00:09]} dxe4 {[%emt 0:00:01]} 9. Ne2 {[%emt 0:00:08]} Be6 {[%emt 0:06:19]} 10. Nc3 {[%emt 0:01:53]} Bb4 {[%emt 0:00:05]} 11. a3 {[%emt 0:01:07]} Qa5 {[%emt 0:01:11]} 12. Bh4 {[%emt 0:00:09]} Nd7 {[%emt 0:00:52]} 13. Be2 {[%emt 0:02:00]} O-O {[%emt 0:02:50]} 14. O-O {[%emt 0:00:15]} Bxc3 {[%emt 0:00:09]} 15. bxc3 {[%emt 0:00:16]} Nb6 {[%emt 0:13:00]} 16. Rfb1 {[%emt 0:00:32]} Rac8 {[%emt 0:05:57]} 17. Qc2 {[%emt 0:03:39]} Qd5 {[%emt 0:29:18]} 18. Be7 {[%emt 0:23:10]} Rfe8 {[%emt 0:00:03]} 19. Bc5 {[%emt 0:00:12]} Nd7 {[%emt 0:09:34]} 20. c4 {[%emt 0:05:15]} Qg5 {[%emt 0:00:11]} 21. Bxa7 {[%emt 1:00:45]} Bh3 {[%emt 0:05:12]} 22. Bf1 {[%emt 0:01:56]} Re6 {[%emt 0:04:08]} 23. Rxb7 {[%emt 0:04:51]} Rce8 {[%emt 0:00:08]} 24. g3 {[%emt 0:04:45]} Qf5 {[%emt 0:04:56]} 25. Rxd7 {[%emt 0:04:55]} Rh6 {[%emt 0:00:14]} 26. Rb7 {[%emt 0:00:41]} Bxf1 {[%emt 0:05:33]} 27. Rxf1 {[%emt 0:00:10]} *

[Event "Austria 2nd BL-Mitte 2024-25"]
[Site "Austria"]
[Date "2025.04.04"]
[Round "9.12"]
[White "Trippold, Denise"]
[Black "Kranzl, Peter"]
[Result "1/2-1/2"]
[Annotator "ChessBase"]
[ECO "E90"]
[WhiteElo "2173"]
[BlackElo "2139"]
[PlyCount "60"]
[EventDate "2025.03.30"]
[EventType "team-tourn"]
[EventCountry "AUT"]
[SourceTitle "playchess.com"]
[Source "ChessBase"]
[SourceQuality "1"]
[TimeControl "40/5400+30:1800+30"]

1. Nf3 {[%emt 0:00:05]} Nf6 {[%emt 0:00:07]} 2. c4 {[%emt 0:00:08]} g6 {[%emt 0:00:49]} 3. Nc3 {[%emt 0:00:15]} Bg7 {[%emt 0:00:14]} 4. d4 {[%emt 0:00:16]} O-O {[%emt 0:00:17]} 5. e4 {[%emt 0:00:12]} d6 {[%emt 0:00:11]} 6. h3 {[%emt 0:00:10]} a5 {[%emt 0:04:29]} 7. Be3 {[%emt 0:00:37]} Qe8 {[%emt 0:02:01]} 8. Be2 {[%emt 0:11:47]} Na6 {[%emt 0:04:45]} 9. Nd2 {[%emt 0:02:57]} e5 {[%emt 0:01:17]} 10. d5 {[%emt 0:00:15]} Nd7 {[%emt 0:05:41]} 11. g4 {[%emt 0:00:24]} Ndc5 {[%emt 0:09:18]} 12. Rg1 {[%emt 0:21:27]} Qd8 {[%emt 0:08:21]} 13. a3 {[%emt 0:03:09]} Bd7 {[%emt 0:01:20]} 14. b3 {[%emt 0:05:46]} Kh8 {[%emt 0:19:23]} 15. Qb1 {[%emt 0:09:21]} f5 {[%emt 0:09:50]} 16. gxf5 {[%emt 0:02:07]} gxf5 {[%emt 0:01:32]} 17. b4 {[%emt 0:16:49]} axb4 {[%emt 0:05:01]} 18. axb4 {[%emt 0:00:14]} f4 {[%emt 0:02:10]} 19. Bxc5 {[%emt 0:00:51]} dxc5 {[%emt 0:00:34]} 20. bxc5 {[%emt 0:06:27]} Nxc5 {[%emt 0:01:02]} 21. Rxa8 {[%emt 0:02:38]} Qxa8 {[%emt 0:00:15]} 22. Bg4 {[%emt 0:00:17]} Qa5 {[%emt 0:07:07]} 23. Qc2 {[%emt 0:13:17]} Qa1+ {[%emt 0:05:09]} 24. Ndb1 {[%emt 0:00:05]} Be8 {[%emt 0:02:56]} 25. Ke2 {[%emt 0:02:28]} Rf6 {[%emt 0:02:27]} 26. Rc1 {[%emt 0:00:50]} Rb6 {[%emt 0:02:23]} 27. Nd2 {[%emt 0:00:05]} Qa3 {[%emt 0:01:53]} 28. Rb1 {[%emt 0:00:24]} Rxb1 {[%emt 0:01:47]} 29. Ndxb1 {[%emt 0:00:56]} Qa6 {[%emt 0:00:42]} 30. Nd2 {[%emt 0:00:28]} Bf8 {[%emt 0:00:15]} 1/2-1/2

[Event "Austria 2nd BL-Mitte 2024-25"]
[Site "Austria"]
[Date "2025.04.04"]
[Round "9.13"]
[White "Leisch, Lukas"]
[Black "Stevic, Hrvoje"]
[Result "1-0"]
[Annotator "TA"]
[ECO "D13"]
[WhiteElo "2407"]
[BlackElo "2545"]
[PlyCount "105"]
[EventDate "2025.03.30"]
[EventType "team-tourn"]
[EventCountry "AUT"]
[SourceTitle "playchess.com"]
[Source "ChessBase"]
[SourceQuality "1"]
[TimeControl "40/5400+30:1800+30"]

{[%evp 16,105,26,34,36,33,26,29,29,44,42,12,19,20,11,16,37,0,0,0,0,0,0,0,7,0,0,0,0,0,3,0,183,173,318,248,234,208,411,418,415,409,396,386,364,312,335,272,371,368,368,360,366,339,365,367,366,334,374,371,399,345,334,0,375,410,642,464,464,428,384,350,625,483,476,414,744,696,886,875,879,871,854,849,834,834,810,788,758,753,567,500]} 1. d4 {[%emt 0:00:03]} d5 {[%emt 0:00:12]} 2. c4 {[%emt 0:00:06]} c6 {[%emt 0:00:32]} 3. cxd5 {[%emt 0:00:07]} cxd5 {[%emt 0:00:06]} 4. Nf3 {[%emt 0:00:05]} Nf6 {[%emt 0:00:17]} 5. Nc3 {[%emt 0:00:06]} Nc6 {[%emt 0:00:33]} 6. Bf4 {[%emt 0:00:06]} a6 {[%emt 0:00:58]} 7. Rc1 {[%emt 0:00:15]} Bf5 {[%emt 0:01:23]} 8. e3 {[%emt 0:00:22]} e6 {[%emt 0:00:29] The main line 8...e6 scores better than 8...Rc8.} 9. Qb3 {[%emt 0:00:32]} Bb4 {[%emt 0:00:41] D13: Slav Defence: Exchange variation without ...Bf5.} 10. Ne5 {[%emt 0:01:20]} Bxc3+ {[%emt 0:00:20]} 11. bxc3 {[%emt 0:00:56]} Nxe5 {[%emt 0:00:10] White has an edge.} 12. Bxe5 {[%emt 0:00:06]} O-O {[%emt 0:02:35]} 13. Qxb7 {[%emt 0:00:30][%cal Ob7b4]} Ne4 {[%emt 0:00:28] Black sacrificed a pawn} 14. f3 {[%emt 0:01:04]} (14. Bxa6 $2 Qa5 15. g4 Bg6 $19 (15... Qxa6 16. Qxa6 Rxa6 17. gxf5 $17) (15... Bxg4 $2 16. Bd3 $19) (15... Rxa6 16. gxf5 exf5 17. O-O $17) (15... Nxc3 $2 16. O-O $19)) 14... Qh4+ {[%emt 0:14:21]} 15. g3 {[%emt 0:00:28] Active counter play!} Qh6 $146 {[%emt 0:00:38]} (15... Qh5 16. Be2 Ng5 17. O-O Be4 18. Kg2 Qh3+ 19. Kg1 Qh5 20. Kg2 Qh3+ 21. Kg1 Qh5 22. Kg2 {½-½ Van der Hagen,L (2382)-Rasmussen,C (2239) Plzen A2 12th 2024 (9)}) 16. Bf4 {[%emt 0:00:23]} (16. fxe4 $2 Qxe3+ 17. Kd1 Bxe4 $19) (16. Ke2 {is more complex.} Rac8 17. c4 Ng5 18. Bf4) 16... g5 $1 {[%emt 0:07:52]} 17. Bc7 {[%emt 0:00:16][%cal Of1e2]} (17. fxe4 Bxe4 18. Bd6 Bxh1 19. Bxf8 Rxf8 $15) 17... g4 $1 {[%emt 0:02:35]} 18. Bf4 {[%emt 0:00:10]} (18. fxe4 $2 Qxe3+ 19. Kd1 Bxe4 $19 (19... Qxe4 $2 20. Rg1 $18)) 18... Ng5 {[%emt 0:03:39]} 19. fxg4 {[%emt 0:00:18]} Be4 $132 {[%emt 0:03:24][%mdl 2048] [#] Threatens to win with ...e5. Black has counterplay} 20. h4 $1 {[%emt 0:00:21]} Bxh1 {[%emt 0:00:56]} 21. Bxg5 {[%emt 0:00:08]} Qg6 {[%emt 0:10:38]} 22. Bf4 {[%emt 0:00:23] Prevents Rfb8} Qxg4 {[%emt 0:28:18][%cal Oe6e5]} 23. c4 {[%emt 0:01:24]} Qf3 $2 {[%emt 0:09:13] [#] White stays focused until the end.} (23... f6 $11 {and Black is okay.}) 24. Qe7 $1 $18 {[%emt 0:33:00][%mdl 1024] White has strong compensation.} h6 {[%emt 0:00:04] Prevents Qg5+} (24... Qe4 {was called for.}) 25. Be2 {[%emt 0:04:12]} Qe4 {[%emt 0:00:13] Black is weak on the dark squares} 26. Qf6 {[%emt 0:17:22]} Rfb8 $2 {[%emt 0:00:11]} (26... Qg6 27. Qxg6+ fxg6) 27. Be5 {[%emt 0:05:47]} ({Weaker is} 27. Qxh6 Rb1 28. Qg5+ Kh7 29. Qh6+ (29. Rxb1 Qxb1+ 30. Kf2 dxc4 $16) 29... Kg8 30. Qg5+ Kh7 $16) ({Don't take} 27. Bxh6 Qg6 28. Qxg6+ fxg6 $18) 27... Qh7 {[%emt 0:00:05] [#] Prevents Qg7+} 28. Bd3 {[%emt 0:01:06][%mdl 512] A strong pair of Bishops.} Be4 {[%emt 0:00:07]} 29. Bxe4 {[%emt 0:00:04]} dxe4 {[%emt 0:00:02]} 30. Bxb8 {[%emt 0:01:46]} Rxb8 {[%emt 0:00:03][%mdl 4096] Endgame KQR-KQR. White is a pawn up.} 31. c5 {[%emt 0:05:30]} Qg6 {[%emt 0:05:10]} 32. Qxg6+ {[%emt 0:06:49]} fxg6 {[%emt 0:00:01] KR-KR. White is a pawn up.} 33. Kd2 {[%emt 0:00:29]} Kf7 {[%emt 0:00:04]} 34. Rf1+ {[%emt 0:06:20]} Ke7 {[%emt 0:00:04]} 35. Rf4 {[%emt 0:00:35]} Rb2+ {[%emt 0:01:58]} 36. Kc3 {[%emt 0:00:08]} Rxa2 {[%emt 0:00:07]} 37. Rxe4 {[%emt 0:00:07]} Kf6 {[%emt 0:01:34]} 38. Rf4+ {[%emt 0:00:25]} Ke7 {[%emt 0:00:03]} 39. Re4 {[%emt 0:00:29]} Kf6 $1 {[%emt 0:00:04]} 40. g4 {[%emt 0:12:05]} g5 {[%emt 0:06:13]} (40... Kf7 $142 41. g5 hxg5 42. hxg5 Rg2) 41. hxg5+ {[%emt 0:33:07]} hxg5 {[%emt 0:30:40]} 42. Re5 {[%emt 0:00:00] and c6 should not be overlooked} Ra1 {[%emt 0:00:00]} 43. Kb4 {[%emt 0:00:00]} a5+ $2 {[%emt 0:00:00]} (43... Ra2 44. c6 Ke7 45. Rxg5 Kd6) 44. Kb5 {[%emt 0:00:00]} a4 {[%emt 0:00:00]} 45. Kb4 {[%emt 0:00:00]} a3 {[%emt 0:00:00]} (45... Ra2 $142 46. Kb5 a3) 46. Kb3 {[%emt 0:00:00] White is clearly winning.} a2 {[%emt 0:00:00]} 47. Re4 {[%emt 0:00:00]} Ke7 {[%emt 0:00:00]} 48. Kb2 {[%emt 0:00:00]} Rg1 {[%emt 0:00:00]} 49. Kxa2 {[%emt 0:00:00]} Kd7 {[%emt 0:00:00]} 50. Kb3 {[%emt 0:00:00]} Rg2 {[%emt 0:00:00]} 51. Kc3 {[%emt 0:00:00]} Rg1 {[%emt 0:00:00]} 52. Kd2 {[%emt 0:00:00]} Rg2+ {[%emt 0:00:00]} 53. Ke1 {[%emt 0:00:00] Weighted Error Value: White=0.20 (precise) /Black=0.53  Loses game:     	---       	Black=1      Mistake:       	---       	Black=5      Inaccurate:     	White=2     	Black=1      OK:         	White=19    	Black=13     Best:        	White=3     	Black=4      Strong:       	White=1     	Black=3} 1-0

[Event "Austria 2nd BL-Mitte 2024-25"]
[Site "Austria"]
[Date "2025.04.04"]
[Round "9.14"]
[White "Heinemann, Thies"]
[Black "Salvenmoser, Stefan"]
[Result "1/2-1/2"]
[Annotator "RC"]
[ECO "B51"]
[WhiteElo "2418"]
[BlackElo "2296"]
[PlyCount "97"]
[EventDate "2025.03.30"]
[EventType "team-tourn"]
[EventCountry "AUT"]
[SourceTitle "playchess.com"]
[Source "ChessBase"]
[SourceQuality "1"]
[TimeControl "40/5400+30:1800+30"]

1. e4 {[%emt 0:00:03]} c5 {[%emt 0:00:13]} 2. Nf3 {[%emt 0:00:04]} d6 {[%emt 0:00:24]} 3. Bb5+ {[%emt 0:00:43]} Nc6 {[%emt 0:00:24]} 4. Bxc6+ {[%emt 0:00:41]} bxc6 {[%emt 0:00:07]} 5. O-O {[%emt 0:00:08]} e5 {[%emt 0:01:34]} 6. Re1 {[%emt 0:03:13]} Nf6 {[%emt 0:01:33]} 7. c3 {[%emt 0:00:22]} Be7 {[%emt 0:02:42]} 8. d4 {[%emt 0:00:14]} cxd4 {[%emt 0:01:56]} 9. cxd4 {[%emt 0:00:06]} exd4 {[%emt 0:00:33]} 10. Nxd4 {[%emt 0:00:30]} Bd7 {[%emt 0:02:47]} 11. Nc3 {[%emt 0:00:24]} O-O {[%emt 0:00:28]} 12. Bf4 {[%emt 0:01:34]} Re8 {[%emt 0:12:59]} 13. h3 {[%emt 0:05:42]} Qb6 {[%emt 0:13:18]} 14. Re2 {[%emt 0:02:37]} h6 {[%emt 0:12:23]} 15. Rc1 {[%emt 0:03:34]} Rad8 {[%emt 0:02:48]} 16. Rd2 {[%emt 0:09:12]} Bf8 {[%emt 0:06:36]} 17. Qf3 {[%emt 0:08:45]} c5 {[%emt 0:04:30]} 18. Nde2 {[%emt 0:04:44]} Bc6 {[%emt 0:02:34]} 19. Ng3 {[%emt 0:01:25]} Qb4 {[%emt 0:04:00]} 20. Nd5 {[%emt 0:07:44]} Bxd5 {[%emt 0:02:51]} 21. exd5 {[%emt 0:00:16]} Ne4 {[%emt 0:00:12]} 22. Re2 {[%emt 0:11:43]} Nxg3 {[%emt 0:00:33]} 23. Bxg3 {[%emt 0:00:18]} Rxe2 {[%emt 0:01:46]} 24. Qxe2 {[%emt 0:00:09]} Qb7 {[%emt 0:07:31]} 25. Rd1 {[%emt 0:04:01]} Rb8 {[%emt 0:01:23]} 26. b3 {[%emt 0:02:03]} a5 {[%emt 0:01:18]} 27. Qe4 {[%emt 0:15:46]} Qb4 {[%emt 0:04:31]} 28. Re1 {[%emt 0:07:24]} Ra8 {[%emt 0:03:12]} 29. f3 {[%emt 0:02:10]} g6 {[%emt 0:00:18]} 30. Re2 {[%emt 0:01:23]} Qb5 {[%emt 0:01:42]} 31. Qc4 {[%emt 0:03:35]} Qxc4 {[%emt 0:00:40]} 32. bxc4 {[%emt 0:00:01]} Rb8 {[%emt 0:00:21]} 33. Kf2 {[%emt 0:01:18]} a4 {[%emt 0:00:43]} 34. Ke3 {[%emt 0:00:23]} Be7 {[%emt 0:06:22]} 35. Kd3 {[%emt 0:00:27]} Kf8 {[%emt 0:00:22]} 36. Bf4 {[%emt 0:01:06]} g5 {[%emt 0:00:25]} 37. Bc1 {[%emt 0:00:51]} Bf6 {[%emt 0:00:58]} 38. Ba3 {[%emt 0:00:34]} Rb7 {[%emt 0:01:17]} 39. Kc2 {[%emt 0:00:31]} Rb8 {[%emt 0:00:34]} 40. Re1 {[%emt 0:01:02]} Bd4 {[%emt 0:00:33]} 41. Re4 {[%emt 0:32:28]} Bf6 {[%emt 0:01:27]} 42. Re2 {[%emt 0:00:00]} Rb7 {[%emt 0:00:22]} 43. Re1 {[%emt 0:00:00]} h5 {[%emt 0:09:36]} 44. Re4 {[%emt 0:00:00]} Rb8 {[%emt 0:03:11]} 45. Re2 {[%emt 0:00:00]} Kg7 {[%emt 0:01:31]} 46. Bc1 {[%emt 0:00:00]} Kg6 {[%emt 0:03:38]} 47. g4 {[%emt 0:00:00]} Be5 {[%emt 0:00:18]} 48. Rg2 {[%emt 0:00:00]} f6 {[%emt 0:01:08]} 49. Kd3 {[%emt 0:00:00]} 1/2-1/2

[Event "Austria 2nd BL-Mitte 2024-25"]
[Site "Austria"]
[Date "2025.04.04"]
[Round "9.15"]
[White "Singer, Christoph"]
[Black "Kreisl, Robert"]
[Result "1/2-1/2"]
[Annotator "RC"]
[ECO "D04"]
[WhiteElo "2268"]
[BlackElo "2277"]
[PlyCount "61"]
[EventDate "2025.03.30"]
[EventType "team-tourn"]
[EventCountry "AUT"]
[SourceTitle "playchess.com"]
[Source "ChessBase"]
[SourceQuality "1"]
[TimeControl "40/5400+30:1800+30"]

1. Nf3 {[%emt 0:00:06]} Nf6 {[%emt 0:02:36]} 2. d4 {[%emt 0:00:10]} c5 {[%emt 0:07:47]} 3. e3 {[%emt 0:02:47]} d5 {[%emt 0:04:16]} 4. Be2 {[%emt 0:02:07]} Nc6 {[%emt 0:05:51]} 5. O-O {[%emt 0:00:11]} Bg4 {[%emt 0:07:28]} 6. Nbd2 {[%emt 0:01:23]} e6 {[%emt 0:01:21]} 7. a3 {[%emt 0:02:57]} cxd4 {[%emt 0:01:04]} 8. exd4 {[%emt 0:00:01]} Bd6 {[%emt 0:00:56]} 9. Re1 {[%emt 0:00:15]} O-O {[%emt 0:00:59]} 10. c3 {[%emt 0:00:21]} Qc7 {[%emt 0:02:30]} 11. Nf1 {[%emt 0:00:11]} Ne4 {[%emt 0:02:12]} 12. Ng5 {[%emt 0:00:30]} Bxe2 {[%emt 0:00:13]} 13. Qxe2 {[%emt 0:00:10]} Nxg5 {[%emt 0:00:19]} 14. Bxg5 {[%emt 0:00:06]} Bf4 {[%emt 0:03:14]} 15. Bxf4 {[%emt 0:02:46]} Qxf4 {[%emt 0:01:28]} 16. Rad1 {[%emt 0:00:06]} Ne7 {[%emt 0:18:44]} 17. Ng3 {[%emt 0:07:42]} g6 {[%emt 0:06:09]} 18. Rd3 {[%emt 0:04:04]} Nf5 {[%emt 0:06:03]} 19. Nxf5 {[%emt 0:02:42]} Qxf5 {[%emt 0:00:05]} 20. Qd2 {[%emt 0:03:14]} Qf6 {[%emt 0:02:10]} 21. Rf3 {[%emt 0:00:35]} Qg7 {[%emt 0:00:14]} 22. h4 {[%emt 0:00:49]} h6 {[%emt 0:05:39]} 23. Rg3 {[%emt 0:01:22]} Rae8 {[%emt 0:01:09]} 24. f4 {[%emt 0:05:53]} h5 {[%emt 0:01:08]} 25. Re5 {[%emt 0:03:31]} f6 {[%emt 0:01:11]} 26. Re1 {[%emt 0:09:01]} f5 {[%emt 0:01:00]} 27. Qe2 {[%emt 0:05:30]} Re7 {[%emt 0:01:19]} 28. Re3 {[%emt 0:01:41]} Rfe8 {[%emt 0:00:06]} 29. Re5 {[%emt 0:00:33]} Qf6 {[%emt 0:01:13]} 30. g3 {[%emt 0:00:48]} Kf7 {[%emt 0:00:04]} 31. c4 {[%emt 0:20:20]} 1/2-1/2

[Event "Austria 2nd BL-Mitte 2024-25"]
[Site "Austria"]
[Date "2025.04.04"]
[Round "9.16"]
[White "Frosch, Erich"]
[Black "Belezky, Alexander"]
[Result "0-1"]
[Annotator "RC"]
[ECO "E11"]
[WhiteElo "2135"]
[BlackElo "2290"]
[PlyCount "134"]
[EventDate "2025.03.30"]
[EventType "team-tourn"]
[EventCountry "AUT"]
[SourceTitle "playchess.com"]
[Source "ChessBase"]
[SourceQuality "1"]
[TimeControl "40/5400+30:1800+30"]

1. d4 {[%emt 0:00:05]} Nf6 {[%emt 0:00:04]} 2. c4 {[%emt 0:00:06]} e6 {[%emt 0:00:04]} 3. Nf3 {[%emt 0:00:07]} Bb4+ {[%emt 0:00:04]} 4. Nbd2 {[%emt 0:00:10]} b6 {[%emt 0:00:06]} 5. a3 {[%emt 0:00:08]} Bxd2+ {[%emt 0:00:05]} 6. Qxd2 {[%emt 0:00:10]} a5 {[%emt 0:00:06]} 7. Qc2 {[%emt 0:00:20]} Bb7 {[%emt 0:00:08]} 8. Bg5 {[%emt 0:00:21]} h6 {[%emt 0:00:59]} 9. Bh4 {[%emt 0:00:12]} d6 {[%emt 0:00:20]} 10. e3 {[%emt 0:00:21]} Nbd7 {[%emt 0:01:30]} 11. Bd3 {[%emt 0:01:52]} Qe7 {[%emt 0:00:36]} 12. e4 {[%emt 0:03:12]} e5 {[%emt 0:00:16]} 13. dxe5 {[%emt 0:00:40]} dxe5 {[%emt 0:00:10]} 14. Bg3 {[%emt 0:00:54]} Nh5 {[%emt 0:03:11]} 15. Qc3 {[%emt 0:01:24]} Nxg3 {[%emt 0:00:54]} 16. hxg3 {[%emt 0:00:11]} Nc5 {[%emt 0:03:50]} 17. O-O {[%emt 0:00:57]} O-O-O {[%emt 0:03:55]} 18. Bc2 {[%emt 0:01:40]} Nxe4 {[%emt 0:02:32]} 19. Bxe4 {[%emt 0:18:22]} Bxe4 {[%emt 0:00:04]} 20. c5 {[%emt 0:01:58]} Qxc5 {[%emt 0:05:27]} 21. Qxc5 {[%emt 0:02:44]} bxc5 {[%emt 0:00:05]} 22. Nxe5 {[%emt 0:01:06]} Rhe8 {[%emt 0:05:24]} 23. Nc4 {[%emt 0:02:10]} a4 {[%emt 0:04:46]} 24. Rfc1 {[%emt 0:00:36]} Kb7 {[%emt 0:00:32]} 25. Ne3 {[%emt 0:01:56]} Kc6 {[%emt 0:05:31]} 26. Rc3 {[%emt 0:01:52]} Rd3 {[%emt 0:00:46]} 27. Rc4 {[%emt 0:00:08]} Rd4 {[%emt 0:00:29]} 28. Rc3 {[%emt 0:00:08]} Rd3 {[%emt 0:03:36]} 29. Rc4 {[%emt 0:00:09]} Rd4 {[%emt 0:00:04]} 30. Rc3 {[%emt 0:00:09]} Rb8 {[%emt 0:02:22]} 31. Rac1 {[%emt 0:01:04]} Rb5 {[%emt 0:00:35]} 32. f3 {[%emt 0:05:20]} Bg6 {[%emt 0:01:44]} 33. g4 {[%emt 0:16:14]} f6 {[%emt 0:04:13]} 34. Kh2 {[%emt 0:00:30]} Rd3 {[%emt 0:04:07]} 35. Rxd3 {[%emt 0:02:57]} Bxd3 {[%emt 0:00:04]} 36. Rd1 {[%emt 0:01:22]} c4 {[%emt 0:15:31]} 37. Rd2 {[%emt 0:00:19]} c3 {[%emt 0:04:16]} 38. bxc3 {[%emt 0:00:20]} Bh7 {[%emt 0:03:06]} 39. Rd4 {[%emt 0:03:04]} Rb3 {[%emt 0:01:23]} 40. Rc4+ {[%emt 0:02:20]} Kd6 {[%emt 0:00:40]} 41. Rd4+ {[%emt 0:31:26]} Ke6 {[%emt 0:30:26]} 42. Rxa4 {[%emt 0:01:00]} Rxc3 {[%emt 0:00:26]} 43. Nd1 {[%emt 0:01:43]} Rc1 {[%emt 0:02:14]} 44. Ne3 {[%emt 0:00:39]} Bd3 {[%emt 0:03:40]} 45. Ra7 {[%emt 0:09:35]} Re1 {[%emt 0:10:07]} 46. Nf5 {[%emt 0:01:27]} g6 {[%emt 0:04:52]} 47. Ng7+ {[%emt 0:05:31]} Kf7 {[%emt 0:04:55]} 48. Rxc7+ {[%emt 0:00:57]} Re7 {[%emt 0:00:05]} 49. Rxe7+ {[%emt 0:00:46]} Kxe7 {[%emt 0:00:01]} 50. a4 {[%emt 0:01:58]} Kf7 {[%emt 0:00:19]} 51. Nh5 {[%emt 0:00:25]} gxh5 {[%emt 0:00:05]} 52. gxh5 {[%emt 0:00:01]} f5 {[%emt 0:00:21]} 53. Kg3 {[%emt 0:00:42]} Kf6 {[%emt 0:02:42]} 54. Kf4 {[%emt 0:00:01]} Ba6 {[%emt 0:00:53]} 55. a5 {[%emt 0:00:16]} Bc8 {[%emt 0:00:50]} 56. g3 {[%emt 0:04:07]} Bb7 {[%emt 0:01:34]} 57. g4 {[%emt 0:00:32]} fxg4 {[%emt 0:00:04]} 58. fxg4 {[%emt 0:00:18]} Bc8 {[%emt 0:00:17]} 59. Kf3 {[%emt 0:02:44]} Kg5 {[%emt 0:00:06]} 60. Kg3 {[%emt 0:00:12]} Bxg4 {[%emt 0:00:22]} 61. a6 {[%emt 0:00:30]} Bc8 {[%emt 0:00:06]} 62. a7 {[%emt 0:00:19]} Bb7 {[%emt 0:00:04]} 63. Kh3 {[%emt 0:03:10]} Kxh5 {[%emt 0:00:09]} 64. Kg3 {[%emt 0:00:12]} Kg5 {[%emt 0:00:06]} 65. Kh3 {[%emt 0:00:52]} h5 {[%emt 0:00:10]} 66. Kg3 {[%emt 0:00:32]} h4+ {[%emt 0:00:06]} 67. Kh3 {[%emt 0:00:10]} Ba8 {[%emt 0:00:07]} 0-1